fUSD/lending_fUSD_20250405
["ID","MTS","AMOUNT","RATE_DAILY","PERIOD"]
[357199894,1743889852524,-500.0,0.00030136,2]
[357199895,1743889852537,-513.31693026,0.00030136,2]
[357199896,1743889852549,-500.0,0.00030136,2]
[357199897,1743889852558,-506.89539732,0.00030136,2]
[357199898,1743889852567,-500.0,0.00030136,2]
[357199899,1743889852577,-500.0,0.00030136,2]
[357199900,1743889852586,-500.0,0.00030136,2]
[357199901,1743889852595,-500.0,0.00030136,2]
[357199902,1743889852605,-500.0,0.00030136,2]
[357199903,1743889852614,-509.25463678,0.00030136,2]
[357199904,1743889852624,-500.0,0.00030136,2]
[357199905,1743889852634,-500.0,0.00030136,2]
[357199906,1743889852647,-500.0,0.00030136,2]
[357199907,1743889852657,-506.80120966,0.00030136,2]
[357199908,1743889852667,-503.94508787,0.00030136,2]
[357199909,1743889852676,-500.0,0.00030136,2]
[357199910,1743889852686,-500.0,0.00030136,2]
[357199911,1743889852696,-5124.55,0.00030136,2]
[357199912,1743889852817,-500.0,0.00030136,2]
[357199913,1743889852827,-516.9518107,0.00030136,2]
[357199914,1743889852836,-500.0,0.00030136,2]
[357199915,1743889852845,-500.0,0.00030136,2]
[357199916,1743889852855,-500.0,0.00030136,2]
[357199917,1743889852864,-500.0,0.00030136,2]
[357199918,1743889852873,-500.0,0.00030136,2]
[357199919,1743889852882,-500.0,0.00030136,2]
[357199920,1743889852891,-510.98338077,0.00030136,2]
[357199921,1743889852900,-500.0,0.00030136,2]
[357199922,1743889852909,-500.0,0.00030136,2]
[357199923,1743889852918,-500.0,0.00030136,2]
[357199924,1743889852927,-500.0,0.00030136,2]
[357199925,1743889852936,-3954.57,0.00030136,2]
[357199926,1743889852945,-512.87103996,0.00030136,2]
[357199927,1743889852954,-2313.92,0.00030136,2]
[357199928,1743889852963,-500.0,0.00030136,2]
[357199929,1743889852973,-504.12241566,0.00030136,2]
[357199930,1743889852981,-500.0,0.00030136,2]
[357199931,1743889852991,-516.63235915,0.00030136,2]
[357199932,1743889853000,-524.53663942,0.00030136,2]
[357199933,1743889853009,-500.0,0.00030136,2]
[357199934,1743889853018,-500.0,0.00030136,2]
[357199935,1743889853027,-500.0,0.00030136,2]
[357199936,1743889853039,-531.31566461,0.00030136,2]
[357199937,1743889853048,-500.0,0.00030136,2]
[357199938,1743889853057,-500.0,0.00030136,2]
[357199939,1743889853066,-500.0,0.00030136,2]
[357199940,1743889853075,-160.33975781,0.00030136,2]
[357199941,1743889853086,-500.0,0.00030136,2]
[357199942,1743889853095,-530.85847615,0.00030136,2]
[357199943,1743889853104,-505.94645146,0.00030136,2]
[357199944,1743889853114,-500.0,0.00030136,2]
[357199945,1743889853123,-500.0,0.00030136,2]
[357199946,1743889853133,-507.21319461,0.00030136,2]
[357199947,1743889853143,-500.0,0.00030136,2]
[357199948,1743889853152,-500.0,0.00030136,2]
[357199949,1743889853161,-500.0,0.00030136,2]
[357199950,1743889853171,-500.0,0.00030136,2]
[357199951,1743889853180,-500.0,0.00030136,2]
[357199952,1743889853189,-500.0,0.00030136,2]
[357199953,1743889853198,-502.79105217,0.00030136,2]
[357199954,1743889853207,-537.1708044,0.00030136,2]
[357199955,1743889853216,-516.18247101,0.00030136,2]
[357199956,1743889853225,-500.0,0.00030136,2]
[357199957,1743889853235,-512.14231752,0.00030136,2]
[357199958,1743889853244,-539.72939969,0.00030136,2]
[357199959,1743889853253,-500.0,0.00030136,2]
[357199960,1743889853262,-537.17341126,0.00030136,2]
[357199961,1743889853271,-500.0,0.00030136,2]
[357199962,1743889853281,-500.0,0.00030136,2]
[357199963,1743889853290,-725.53,0.00030136,2]
[357199964,1743889853299,-500.0,0.00030136,2]
[357199965,1743889853309,-500.0,0.00030136,2]
[357199966,1743889853319,-509.26794981,0.00030136,2]
[357199967,1743889853328,-500.0,0.00030136,2]
[357199968,1743889853337,-500.0,0.00030136,2]
[357199969,1743889853346,-500.0,0.00030136,2]
[357199970,1743889853355,-500.0,0.00030136,2]
[357199971,1743889853380,-500.0,0.00030136,2]
[357199972,1743889853389,-500.0,0.00030136,2]
[357199973,1743889853398,-515.07055151,0.00030136,2]
[357199974,1743889853407,-500.0,0.00030136,2]
[357199975,1743889853416,-532.33083839,0.00030136,2]
[357199976,1743889853424,-500.0,0.00030136,2]
[357199977,1743889853433,-403.15267586,0.00030136,2]
[357199978,1743889853442,-500.0,0.00030136,2]
[357199979,1743889853451,-500.0,0.00030136,2]
[357199980,1743889853460,-9545.26,0.00030136,2]
[357199981,1743889853469,-500.0,0.00030136,2]
[357199982,1743889853478,-500.0,0.00030136,2]
[357199983,1743889853487,-500.0,0.00030136,2]
[357199984,1743889853496,-500.0,0.00030136,2]
[357199985,1743889853505,-516.01853022,0.00030136,2]
[357199986,1743889853514,-500.0,0.00030136,2]
[357199987,1743889853523,-500.0,0.00030136,2]
[357199988,1743889853531,-500.0,0.00030136,2]
[357199989,1743889853540,-500.0,0.00030136,2]
[357199990,1743889853549,-549.53132082,0.00030136,2]
[357199991,1743889853558,-518.42796106,0.00030136,2]
[357199992,1743889853567,-509.05680893,0.00030136,2]
[357199993,1743889853576,-500.0,0.00030136,2]
[357199994,1743889853585,-500.0,0.00030136,2]
[357199995,1743889853594,-500.0,0.00030136,2]
[357199996,1743889853603,-500.0,0.00030136,2]
[357199997,1743889853612,-500.0,0.00030136,2]
[357199998,1743889853621,-510.09444149,0.00030136,2]
[357199999,1743889853630,-500.0,0.00030136,2]
[357200000,1743889853640,-500.0,0.00030136,2]
[357200001,1743889853649,-500.0,0.00030136,2]
[357200002,1743889853658,-500.0,0.00030136,2]
[357200003,1743889853667,-500.0,0.00030136,2]
[357200004,1743889853676,-500.0,0.00030136,2]
[357200005,1743889853685,-500.0,0.00030136,2]
[357200006,1743889853694,-619.63518357,0.00030136,2]
[357200007,1743889853703,-515.53606634,0.00030136,2]
[357200008,1743889853712,-1174.37,0.00030136,2]
[357200009,1743889853721,-500.0,0.00030136,2]
[357200010,1743889853730,-500.0,0.00030136,2]
[357200011,1743889853739,-502.49249035,0.00030136,2]
[357200012,1743889853748,-500.0,0.00030136,2]
[357200013,1743889853757,-500.0,0.00030136,2]
[357200014,1743889853766,-500.0,0.00030136,2]
[357200015,1743889853775,-500.0,0.00030136,2]
[357200016,1743889853784,-500.0,0.00030136,2]
[357200017,1743889853794,-500.0,0.00030136,2]
[357200018,1743889853802,-549.70468842,0.00030136,2]
[357200019,1743889853811,-500.0,0.00030136,2]
[357200020,1743889853820,-512.2030889,0.00030136,2]
[357200021,1743889853829,-729.74,0.00030136,2]
[357200022,1743889853838,-500.0,0.00030136,2]
[357200023,1743889853847,-514.49293618,0.00030136,2]
[357200024,1743889853855,-1000.0,0.00030136,2]
[357200025,1743889853865,-508.77617516,0.00030136,2]
[357200026,1743889853873,-499.49451019,0.00030136,2]
[357200027,1743889853882,-500.0,0.00030136,2]
[357200028,1743889853891,-525.26715853,0.00030136,2]
[357200029,1743889853900,-500.0,0.00030136,2]
[357200030,1743889853909,-532.32590538,0.00030136,2]
[357200031,1743889853918,-500.0,0.00030136,2]
[357200032,1743889853927,-500.0,0.00030136,2]
[357200033,1743889853936,-500.0,0.00030136,2]
[357200034,1743889853944,-500.0,0.00030136,2]
[357200035,1743889853954,-511.62607275,0.00030136,2]
[357200036,1743889853963,-500.0,0.00030136,2]
[357200037,1743889853971,-500.0,0.00030136,2]
[357200038,1743889853980,-500.0,0.00030136,2]
[357200039,1743889853989,-500.0,0.00030136,2]
[357200040,1743889853998,-500.0,0.00030136,2]
[357200041,1743889854007,-500.0,0.00030136,2]
[357200042,1743889854016,-500.0,0.00030136,2]
[357200043,1743889854024,-500.0,0.00030136,2]
[357200044,1743889854036,-507.91076272,0.00030136,2]
[357200045,1743889854045,-610.0,0.00030137,2]
[357200046,1743889854054,-1653.68,0.00030137,2]
[357200047,1743889854063,-500.0,0.00030409,2]
[357200048,1743889854072,-500.0,0.00030409,2]
[357200049,1743889854082,-500.0,0.00030409,2]
[357200050,1743889854090,-500.0,0.00030409,2]
[357200051,1743889854099,-500.0,0.0003041,2]
[357200052,1743889854108,-500.0,0.0003041,2]
[357200053,1743889854119,-500.0,0.0003041,2]
[357200054,1743889854130,-500.0,0.0003041,2]
[357200055,1743889854139,-585.5596971,0.0003041,2]
[357200056,1743889854149,-527.5892004,0.0003041,2]
[357200057,1743889854159,-500.0,0.0003041,2]
[357200058,1743889854168,-500.0,0.0003041,2]
[357200059,1743889854177,-500.0,0.0003041,2]
[357200060,1743889854186,-500.0,0.0003041,2]
[357200061,1743889854195,-500.0,0.0003041,2]
[357200062,1743889854205,-500.0,0.0003041,2]
[357200063,1743889854215,-500.0,0.0003041,2]
[357200064,1743889854224,-500.0,0.0003041,2]
[357200065,1743889854233,-500.0,0.0003041,2]
[357200066,1743889854243,-500.0,0.0003041,2]
[357200067,1743889854252,-306.86459551,0.0003041,2]
[357200068,1743889854261,-500.0,0.0003041,2]
[357200069,1743889854271,-500.0,0.0003041,2]
[357200070,1743889854280,-500.0,0.0003041,2]
[357200071,1743889854289,-500.0,0.0003041,2]
[357200072,1743889854298,-500.0,0.0003041,2]
[357200073,1743889854307,-500.0,0.0003041,2]
[357200074,1743889854317,-500.0,0.0003041,2]
[357200075,1743889854326,-500.0,0.0003041,2]
[357200076,1743889854335,-500.0,0.0003041,2]
[357200077,1743889854344,-603.75029266,0.0003041,2]
[357200078,1743889854354,-500.0,0.0003041,2]
[357200079,1743889854363,-500.0,0.0003041,2]
[357200080,1743889854372,-624.84907687,0.0003041,2]
[357200081,1743889854382,-527.03868151,0.0003041,2]
[357200082,1743889854391,-528.75231657,0.0003041,2]
[357200083,1743889854401,-500.0,0.0003041,2]
[357200084,1743889854410,-500.0,0.0003041,2]
[357200085,1743889854419,-306.09959648,0.0003041,2]
[357200086,1743889854428,-538.3764249,0.0003041,2]
[357200087,1743889854437,-500.0,0.0003041,2]
[357200088,1743889854446,-581.77918273,0.0003041,2]
[357200089,1743889854455,-518.22374736,0.0003041,2]
[357200090,1743889854464,-534.66522363,0.0003041,2]
[357200091,1743889854474,-500.0,0.0003041,2]
[357200092,1743889854483,-500.0,0.0003041,2]
[357200093,1743889854492,-587.44971721,0.0003041,2]
[357200094,1743889854501,-794.48,0.0003041,2]
[357200095,1743889854511,-541.66423419,0.0003041,2]
[357200096,1743889854520,-500.0,0.0003041,2]
[357200097,1743889854529,-2000.0,0.0003041,2]
[357200098,1743889854538,-555.02303931,0.0003041,2]
[357200099,1743889854547,-522.89022764,0.0003041,2]
[357200100,1743889854556,-500.0,0.0003041,2]
[357200101,1743889854565,-1261.42,0.0003041,2]
[357200102,1743889854575,-500.0,0.0003041,2]
[357200103,1743889854585,-500.0,0.0003041,2]
[357200104,1743889854594,-500.0,0.0003041,2]
[357200105,1743889854603,-500.0,0.0003041,2]
[357200106,1743889854613,-500.0,0.0003041,2]
[357200107,1743889854622,-500.0,0.0003041,2]
[357200108,1743889854632,-500.0,0.0003041,2]
[357200109,1743889854641,-347.99408934,0.0003041,2]
[357200110,1743889854651,-500.0,0.0003041,2]
[357200111,1743889854661,-500.0,0.0003041,2]
[357200112,1743889854671,-500.0,0.0003041,2]
[357200113,1743889854680,-500.0,0.0003041,2]
[357200114,1743889854689,-500.0,0.0003041,2]
[357200115,1743889854698,-500.0,0.0003041,2]
[357200116,1743889854708,-500.0,0.0003041,2]
[357200117,1743889854717,-301.29139777,0.0003041,2]
[357200118,1743889854727,-500.0,0.0003041,2]
[357200119,1743889854737,-500.0,0.0003041,2]
[357200120,1743889854746,-500.0,0.0003041,2]
[357200121,1743889854755,-431.51288918,0.0003041,2]
[357200122,1743889854765,-500.0,0.0003041,2]
[357200123,1743889854775,-500.0,0.0003041,2]
[357200124,1743889854784,-543.14770875,0.0003041,2]
[357200125,1743889854794,-558.63781715,0.0003041,2]
[357200126,1743889854804,-500.0,0.0003041,2]
[357200127,1743889854813,-500.0,0.0003041,2]
[357200128,1743889854823,-1339.42,0.0003041,2]
[357200129,1743889854832,-527.98,0.0003041,2]
[357200130,1743889854841,-500.0,0.0003041,2]
[357200131,1743889854850,-433.0707892,0.0003041,2]
[357200132,1743889854860,-500.0,0.0003041,2]
[357200133,1743889854869,-500.0,0.0003041,2]
[357200134,1743889854879,-500.0,0.0003041,2]
[357200135,1743889854888,-500.0,0.0003041,2]
[357200136,1743889854897,-500.0,0.0003041,2]
[357200137,1743889854907,-539.12562432,0.0003041,2]
[357200138,1743889854916,-555.05242474,0.0003041,2]
[357200139,1743889854925,-500.0,0.0003041,2]
[357200140,1743889854934,-500.0,0.0003041,2]
[357200141,1743889854943,-548.1685957,0.0003041,2]
[357200142,1743889854953,-500.0,0.0003041,2]
[357200143,1743889854962,-500.0,0.0003041,2]
[357200144,1743889854971,-187.74868166,0.0003041,2]
[357200145,1743889854981,-500.0,0.0003041,2]
[357200146,1743889854991,-554.90774103,0.0003041,2]
[357200147,1743889855000,-500.0,0.0003041,2]
[357200148,1743889855009,-500.0,0.0003041,2]
[357200149,1743889855019,-500.0,0.0003041,2]
[357200150,1743889855028,-500.0,0.0003041,2]
[357200151,1743889855040,-500.0,0.0003041,2]
[357200152,1743889855050,-500.0,0.0003041,2]
[357200153,1743889855062,-539.01184616,0.0003041,2]
[357200154,1743889855072,-500.0,0.0003041,2]
[357200155,1743889855082,-540.68532197,0.0003041,2]
[357200156,1743889855091,-500.0,0.0003041,2]
[357200157,1743889855104,-528.97756958,0.0003041,2]
[357200158,1743889855116,-500.0,0.0003041,2]
[357200159,1743889855126,-500.0,0.0003041,2]
[357200160,1743889855135,-526.02740506,0.0003041,2]
[357200161,1743889855145,-500.0,0.0003041,2]
[357200162,1743889855154,-523.54471921,0.0003041,2]
[357200163,1743889855164,-571.48575648,0.0003041,2]
[357200164,1743889855173,-500.0,0.0003041,2]
[357200165,1743889855183,-500.0,0.0003041,2]
[357200166,1743889855192,-500.0,0.0003041,2]
[357200167,1743889855201,-533.44816009,0.0003041,2]
[357200168,1743889855211,-564.79204684,0.0003041,2]
[357200169,1743889855219,-569.57541885,0.0003041,2]
[357200170,1743889855229,-569.25774895,0.0003041,2]
[357200171,1743889855238,-500.0,0.0003041,2]
[357200172,1743889855246,-500.0,0.0003041,2]
[357200173,1743889855255,-500.0,0.0003041,2]
[357200174,1743889855264,-500.0,0.0003041,2]
[357200175,1743889855273,-500.0,0.0003041,2]
[357200176,1743889855282,-500.0,0.0003041,2]
[357200177,1743889855291,-500.0,0.0003041,2]
[357200178,1743889855300,-571.47836137,0.0003041,2]
[357200179,1743889855309,-500.0,0.0003041,2]
[357200180,1743889855319,-563.70320774,0.0003041,2]
[357200181,1743889855328,-500.0,0.0003041,2]
[357200182,1743889855337,-544.86595448,0.0003041,2]
[357200183,1743889855346,-500.0,0.0003041,2]
[357200184,1743889855355,-500.0,0.0003041,2]
[357200185,1743889855364,-500.0,0.0003041,2]
[357200186,1743889855468,-500.0,0.0003041,2]
[357200187,1743889855492,-500.46586554,0.0003041,2]
[357200188,1743889855501,-507.50663678,0.0003041,2]
[357200189,1743889855511,-523.05281605,0.0003041,2]
[357200190,1743889855520,-507.22089665,0.0003041,2]
[357200191,1743889855529,-500.0,0.0003041,2]
[357200192,1743889855539,-500.0,0.0003041,2]
[357200193,1743889855548,-508.85877538,0.0003041,2]
[357200194,1743889855558,-554.49272474,0.0003041,2]
[357200195,1743889855567,-500.0,0.0003041,2]
[357200196,1743889855576,-500.0,0.0003041,2]
[357200197,1743889855586,-585.81034217,0.0003041,2]
[357200198,1743889855595,-500.0,0.0003041,2]
[357200199,1743889855604,-500.0,0.0003041,2]
[357200200,1743889855613,-605.53865024,0.0003041,2]
[357200201,1743889855623,-537.21,0.0003041,2]
[357200202,1743889855632,-532.47157258,0.0003041,2]
[357200203,1743889855641,-500.0,0.0003041,2]
[357200204,1743889855651,-518.20331983,0.0003041,2]
[357200205,1743889855660,-547.94379312,0.0003041,2]
[357200206,1743889855670,-517.48751644,0.0003041,2]
[357200207,1743889855679,-500.0,0.0003041,2]
[357200208,1743889855689,-500.0,0.0003041,2]
[357200209,1743889855698,-523.19052846,0.0003041,2]
[357200210,1743889855707,-500.0,0.0003041,2]
[357200211,1743889855717,-514.30416142,0.0003041,2]
[357200212,1743889855726,-500.0,0.0003041,2]
[357200213,1743889855735,-548.36334681,0.0003041,2]
[357200214,1743889855744,-625.76362508,0.0003041,2]
[357200215,1743889855754,-444.56974069,0.0003041,2]
[357200216,1743889855763,-597.29106974,0.0003041,2]
[357200217,1743889855772,-573.57113718,0.0003041,2]
[357200218,1743889855782,-534.71660179,0.0003041,2]
[357200219,1743889855791,-500.0,0.0003041,2]
[357200220,1743889855800,-500.0,0.0003041,2]
[357200221,1743889855810,-500.0,0.0003041,2]
[357200222,1743889855819,-544.72248066,0.0003041,2]
[357200223,1743889855828,-500.0,0.0003041,2]
[357200224,1743889855837,-557.23733383,0.0003041,2]
[357200225,1743889855847,-500.0,0.0003041,2]
[357200226,1743889855856,-533.39130878,0.0003041,2]
[357200227,1743889855865,-500.0,0.0003041,2]
[357200228,1743889855875,-563.13093155,0.0003041,2]
[357200229,1743889855885,-500.0,0.0003041,2]
[357200230,1743889855894,-508.00856889,0.0003041,2]
[357200231,1743889855904,-371.386234,0.0003041,2]
[357200232,1743889855913,-598.99174338,0.0003041,2]
[357200233,1743889855922,-222.15025898,0.0003041,2]
[357200234,1743889855931,-500.0,0.0003041,2]
[357200235,1743889855940,-545.79863568,0.0003041,2]
[357200236,1743889855949,-500.0,0.0003041,2]
[357200237,1743889855958,-505.33411635,0.0003041,2]
[357200238,1743889855967,-487.89332379,0.0003041,2]
[357200239,1743889855976,-500.0,0.0003041,2]
[357200240,1743889855986,-528.40636854,0.0003041,2]
[357200241,1743889855995,-536.63847916,0.0003041,2]
[357200242,1743889856004,-500.0,0.0003041,2]
[357200243,1743889856014,-500.0,0.0003041,2]
[357200244,1743889856023,-500.0,0.0003041,2]
[357200245,1743889856033,-564.55869302,0.0003041,2]
[357200246,1743889856045,-508.75430924,0.0003041,2]
[357200247,1743889856055,-505.05583998,0.0003041,2]
[357200248,1743889856066,-514.60096779,0.0003041,2]
[357200249,1743889856076,-500.0,0.0003041,2]
[357200250,1743889856085,-534.40297966,0.0003041,2]
[357200251,1743889856095,-512.44623562,0.0003041,2]
[357200252,1743889856104,-637.09555296,0.0003041,2]
[357200253,1743889856114,-567.45046698,0.0003041,2]
[357200254,1743889856123,-511.51689646,0.0003041,2]
[357200255,1743889856133,-500.0,0.0003041,2]
[357200256,1743889856142,-500.0,0.0003041,2]
[357200257,1743889856151,-517.07065362,0.0003041,2]
[357200258,1743889856161,-500.0,0.0003041,2]
[357200259,1743889856170,-503.40854913,0.0003041,2]
[357200260,1743889856180,-500.0,0.0003041,2]
[357200261,1743889856190,-519.11909326,0.0003041,2]
[357200262,1743889856199,-500.0,0.0003041,2]
[357200263,1743889856208,-462.18715791,0.0003041,2]
[357200264,1743889856217,-500.0,0.0003041,2]
[357200265,1743889856226,-518.85925054,0.0003041,2]
[357200266,1743889856236,-511.17087068,0.0003041,2]
[357200267,1743889856245,-578.74370153,0.0003041,2]
[357200268,1743889856255,-500.0,0.0003041,2]
[357200269,1743889856264,-500.0,0.0003041,2]
[357200270,1743889856273,-543.02616865,0.0003041,2]
[357200271,1743889856283,-575.68779003,0.0003041,2]
[357200272,1743889856293,-500.0,0.0003041,2]
[357200273,1743889856302,-500.0,0.0003041,2]
[357200274,1743889856312,-537.39354395,0.0003041,2]
[357200275,1743889856321,-246.89620376,0.0003041,2]
[357200276,1743889856331,-627.15160794,0.0003041,2]
[357200277,1743889856340,-604.19363275,0.0003041,2]
[357200278,1743889856349,-500.0,0.0003041,2]
[357200279,1743889856358,-531.35079814,0.0003041,2]
[357200280,1743889856368,-500.0,0.0003041,2]
[357200281,1743889856377,-511.08835319,0.0003041,2]
[357200282,1743889856386,-532.71598975,0.0003041,2]
[357200283,1743889856395,-500.0,0.0003041,2]
[357200284,1743889856405,-358.73733384,0.0003041,2]
[357200285,1743889856414,-500.0,0.0003041,2]
[357200286,1743889856424,-500.0,0.0003041,2]
[357200287,1743889856433,-500.0,0.0003041,2]
[357200288,1743889856442,-500.0,0.0003041,2]
[357200289,1743889856451,-500.0,0.0003041,2]
[357200290,1743889856461,-500.0,0.0003041,2]
[357200291,1743889856469,-500.0,0.0003041,2]
[357200292,1743889856478,-500.0,0.0003041,2]
[357200293,1743889856488,-536.57696602,0.0003041,2]
[357200294,1743889856497,-500.0,0.0003041,2]
[357200295,1743889856507,-500.0,0.0003041,2]
[357200296,1743889856516,-500.0,0.0003041,2]
[357200297,1743889856525,-527.01290257,0.0003041,2]
[357200298,1743889856535,-534.3334082,0.0003041,2]
[357200299,1743889856544,-574.87036745,0.0003041,2]
[357200300,1743889856554,-500.0,0.0003041,2]
[357200301,1743889856563,-537.16175516,0.0003041,2]
[357200302,1743889856572,-500.0,0.0003041,2]
[357200303,1743889856582,-500.0,0.0003041,2]
[357200304,1743889856592,-500.0,0.0003041,2]
[357200305,1743889856601,-500.0,0.0003041,2]
[357200306,1743889856610,-533.75596755,0.0003041,2]
[357200307,1743889856621,-539.64479956,0.0003041,2]
[357200308,1743889856631,-500.0,0.0003041,2]
[357200309,1743889856640,-500.0,0.0003041,2]
[357200310,1743889856649,-500.0,0.0003041,2]
[357200311,1743889856659,-500.0,0.0003041,2]
[357200312,1743889856668,-513.85895329,0.0003041,2]
[357200313,1743889856679,-410.82461319,0.0003041,2]
[357200314,1743889856688,-500.0,0.0003041,2]
[357200315,1743889856699,-500.0,0.0003041,2]
[357200316,1743889856708,-500.0,0.0003041,2]
[357200317,1743889856718,-500.0,0.0003041,2]
[357200318,1743889856727,-500.0,0.0003041,2]
[357200319,1743889856736,-518.1781737,0.0003041,2]
[357200320,1743889856746,-500.0,0.0003041,2]
[357200321,1743889856755,-500.0,0.0003041,2]
[357200322,1743889856764,-200.0,0.0003041,2]
[357200323,1743889856773,-500.0,0.0003041,2]
[357200324,1743889856783,-500.0,0.0003041,2]
[357200325,1743889856792,-581.96342767,0.0003041,2]
[357200326,1743889856802,-500.0,0.0003041,2]
[357200327,1743889856811,-234.83323864,0.0003041,2]
[357200328,1743889856819,-500.0,0.0003041,2]
[357200329,1743889856828,-500.0,0.0003041,2]
[357200330,1743889856837,-500.0,0.0003041,2]
[357200331,1743889856847,-561.9250399,0.0003041,2]
[357200332,1743889856856,-500.0,0.0003041,2]
[357200333,1743889856865,-572.79883715,0.0003041,2]
[357200334,1743889856874,-247.1317422,0.0003041,2]
[357200335,1743889856883,-375.32966312,0.0003041,2]
[357200336,1743889856892,-500.0,0.0003041,2]
[357200337,1743889856901,-498.22353115,0.0003041,2]
[357200338,1743889856911,-525.36671879,0.0003041,2]
[357200339,1743889856921,-500.0,0.0003041,2]
[357200340,1743889856931,-406.27996736,0.0003041,2]
[357200341,1743889856940,-500.0,0.0003041,2]
[357200342,1743889856950,-500.0,0.0003041,2]
[357200343,1743889856959,-532.72464301,0.0003041,2]
[357200344,1743889856968,-527.54950411,0.0003041,2]
[357200345,1743889856978,-500.0,0.0003041,2]
[357200346,1743889856986,-500.0,0.0003041,2]
[357200347,1743889856995,-347.1818745,0.0003041,2]
[357200348,1743889857005,-604.73341733,0.0003041,2]
[357200349,1743889857014,-576.48400846,0.0003041,2]
[357200350,1743889857023,-518.25149328,0.0003041,2]
[357200351,1743889857032,-500.0,0.0003041,2]
[357200352,1743889857045,-540.99133605,0.0003041,2]
[357200353,1743889857054,-570.62525489,0.0003041,2]
[357200354,1743889857063,-500.0,0.0003041,2]
[357200355,1743889857072,-500.0,0.0003041,2]
[357200356,1743889857082,-500.0,0.0003041,2]
[357200357,1743889857092,-532.31396748,0.0003041,2]
[357200358,1743889857101,-500.0,0.0003041,2]
[357200359,1743889857109,-528.15791886,0.0003041,2]
[357200360,1743889857118,-524.67731589,0.0003041,2]
[357200361,1743889857125,-500.0,0.0003041,2]
[357200362,1743889857134,-500.0,0.0003041,2]
[357200363,1743889857142,-517.90870353,0.0003041,2]
[357200364,1743889857150,-500.0,0.0003041,2]
[357200365,1743889857158,-500.0,0.0003041,2]
[357200366,1743889857166,-510.12335559,0.0003041,2]
[357200367,1743889857174,-511.73256012,0.0003041,2]
[357200368,1743889857182,-524.48700715,0.0003041,2]
[357200369,1743889857190,-514.85034388,0.0003041,2]
[357200370,1743889857198,-530.02311964,0.0003041,2]
[357200371,1743889857207,-500.0,0.0003041,2]
[357200372,1743889857215,-500.0,0.0003041,2]
[357200373,1743889857224,-506.29601165,0.0003041,2]
[357200374,1743889857232,-522.99134473,0.0003041,2]
[357200375,1743889857242,-561.65305819,0.0003041,2]
[357200376,1743889857251,-500.0,0.0003041,2]
[357200377,1743889857261,-528.06905443,0.0003041,2]
[357200378,1743889857270,-500.0,0.0003041,2]
[357200379,1743889857279,-541.1598535,0.0003041,2]
[357200380,1743889857289,-500.0,0.0003041,2]
[357200381,1743889857299,-500.0,0.0003041,2]
[357200382,1743889857308,-503.61324304,0.0003041,2]
[357200383,1743889857318,-500.0,0.0003041,2]
[357200384,1743889857327,-500.0,0.0003041,2]
[357200385,1743889857337,-539.46779292,0.0003041,2]
[357200386,1743889857346,-500.0,0.0003041,2]
[357200387,1743889857356,-500.0,0.0003041,2]
[357200388,1743889857365,-500.0,0.0003041,2]
[357200389,1743889857374,-500.0,0.0003041,2]
[357200390,1743889857384,-500.0,0.0003041,2]
[357200391,1743889857393,-524.7388339,0.0003041,2]
[357200392,1743889857403,-524.75009786,0.0003041,2]
[357200393,1743889857415,-504.33051396,0.0003041,2]